bitfinex-derivatives/quotes_SOLF0:USTF0_20241216
["timestamp","ask_amount","ask_price","bid_price","bid_amount"]
[1734360288968,11.20514173,217.45,217.31,11.20514173]
[1734360289473,11.20514173,217.45,217.4,2.3002]
[1734360290365,11.20514173,217.45,217.31,16.75444247]
[1734360290565,11.20514173,217.42,217.31,16.75444247]
[1734360290767,11.20514173,217.39,217.31,5.54930074]
[1734360290967,2.2998,217.44,217.37,2.3005]
[1734360291273,11.20514173,217.43,217.37,2.3005]
[1734360291572,11.64244173,217.43,217.37,2.3005]
[1734360292066,11.20514173,217.4,217.3,5.52941275]
[1734360292470,11.20514173,217.4,217.34,2.3007]
[1734360292867,11.20514173,217.4,217.25,14.84514173]
[1734360293067,2.3007,217.36,217.22,11.20514173]
[1734360293267,2.3007,217.36,217.12,4.6062]
[1734360293268,11.20514173,217.37,217.25,11.20514173]
[1734360294071,3.64,217.38,217.28,11.20514173]
[1734360294377,3.64,217.38,217.26,5.50466901]
[1734360294579,3.64,217.38,217.33,2.3009]
[1734360296369,3.64,217.38,217.26,5.50466901]
[1734360296677,3.64,217.38,217.32,2.301]
[1734360297269,2.3003,217.39,217.32,2.301]
[1734360297471,3.64,217.38,217.32,2.301]
[1734360297681,2.3003,217.39,217.32,2.301]
[1734360297879,3.64,217.38,217.32,2.301]
[1734360298074,0.4373,217.43,217.28,11.20514173]
[1734360298274,0.4373,217.43,217.33,11.20514173]
[1734360298780,2.7372,217.43,217.37,2.3005]
[1734360299082,0.4373,217.43,217.33,11.20514173]
[1734360299278,2.7372,217.43,217.37,2.3005]
[1734360299474,0.4373,217.43,217.36,11.20514173]
[1734360300090,0.4373,217.43,217.4,2.3002]
[1734360300381,0.4373,217.43,217.36,11.20514173]
[1734360301479,0.4373,217.43,217.42,2.3]
[1734360302477,2.2986,217.55,217.49,2.2992]
[1734360302780,11.20514173,217.5,217.32,3.42]
[1734360303086,5.62141217,217.57,217.34,11.20514173]
[1734360303087,11.20514173,217.47,217.34,11.20514173]
[1734360303379,3.42,217.47,217.37,11.20514173]
[1734360303581,3.42,217.47,217.4,2.3002]
[1734360303582,5.7196,217.47,217.4,2.3002]
[1734360303781,14.62514173,217.47,217.34,11.20514173]
[1734360303983,11.20514173,217.41,217.28,11.20514173]
[1734360304181,11.20514173,217.41,217.34,2.3008]
[1734360304182,5.7203,217.4,217.34,2.3008]
[1734360304383,3.42,217.4,217.3,5.40990169]
[1734360304781,3.42,217.4,217.37,2.3005]
[1734360304984,11.20514173,217.44,217.31,11.20514173]
[1734360305184,11.20514173,217.47,217.34,11.20514173]
[1734360305487,5.7196,217.46,217.4,2.3002]
[1734360305782,11.20514173,217.44,217.31,11.20514173]
[1734360306185,13.50494173,217.44,217.37,2.3004]
[1734360306682,11.20514173,217.41,217.35,2.3007]
[1734360306880,3.42,217.4,217.3,5.40990169]
[1734360307280,3.42,217.4,217.24,3.42]
[1734360307281,3.42,217.4,217.26,11.20514173]
[1734360307583,11.20514173,217.39,217.29,5.48300745]
[1734360307895,3.42,217.38,217.32,2.3009]
[1734360308084,11.20514173,217.36,217.24,3.42]
[1734360308983,11.20514173,217.36,217.32,2.301]
[1734360309288,11.20514173,217.36,217.24,3.42]
[1734360309490,11.20514173,217.33,217.3,2.3012]
[1734360309784,3.42,217.32,217.21,11.20514173]
[1734360310687,5.7211,217.32,217.21,11.20514173]
[1734360310885,3.42,217.32,217.24,5.39250014]
[1734360313491,3.42,217.32,217.21,11.20514173]
[1734360313691,3.42,217.33,217.24,11.20514173]
[1734360313896,3.42,217.33,217.23,5.4526215]
[1734360314090,14.62514173,217.33,217.23,5.4526215]
[1734360314489,14.62514173,217.33,217.26,2.3017]
[1734360314892,2.3016,217.28,217.22,2.302]
[1734360315094,3.42,217.27,217.17,11.20514173]
[1734360315290,251.6281178,217.42,217.2,11.20514173]
[1734360315488,251.6281178,217.42,217.26,11.20514173]
[1734360315489,11.20514173,217.38,217.26,11.20514173]
[1734360315991,3.42,217.37,217.26,11.20514173]
[1734360317189,3.42,217.36,217.33,2.3009]
[1734360317390,3.42,217.35,217.26,11.20514173]
[1734360317596,3.42,217.36,217.26,11.20514173]
[1734360317792,13.50554173,217.39,217.32,2.301]
[1734360317986,11.20514173,217.33,217.2,16.60967624]
[1734360318188,11.20514173,217.3,217.2,5.40453451]
[1734360318394,5.7214,217.29,217.22,2.302]
[1734360318591,3.42,217.29,217.2,5.40453451]
[1734360318788,3.42,217.29,217.2,16.60967624]
[1734360319998,3.42,217.29,217.2,5.40453451]
[1734360320296,3.42,217.29,217.14,17.91612516]
[1734360320888,17.91612516,217.27,217.17,2.3026]
[1734360321088,17.91612516,217.27,217.07,17.91612516]
[1734360321299,17.91612516,217.23,217.12,5.41719338]
[1734360321497,3.42,217.22,217.12,5.41719338]
[1734360322389,257.15697169,217.34,217.15,18.09668516]
[1734360322592,0.69779917,217.33,217.15,18.09668516]
[1734360322792,251.6281178,217.37,217.19,17.91612516]
[1734360322994,4.11777453,217.36,217.23,17.91612516]
[1734360323188,0.69777453,217.35,217.23,17.91612516]
[1734360323405,3.42,217.36,217.23,17.91612516]
[1734360323595,2.3008,217.34,217.28,2.3015]
[1734360323792,17.91612516,217.35,217.2,3.42]
[1734360324198,17.91612516,217.31,217.17,21.33612516]
[1734360324394,3.42,217.3,217.17,21.33612516]
[1734360324693,2.3014,217.29,217.23,2.3019]
[1734360325001,3.42,217.3,217.15,0.18056]
[1734360325201,3.42,217.3,217.17,17.91612516]
[1734360325389,3.42,217.3,217.15,0.18056]
[1734360325593,17.91612516,217.31,217.15,0.18056]
[1734360325794,3.42,217.3,217.17,17.91612516]
[1734360325989,17.91612516,217.35,217.17,17.91612516]
[1734360325990,3.42,217.32,217.17,17.91612516]
[1734360326601,5.7211,217.32,217.21,2.3022]
[1734360326897,23.44106615,217.35,217.19,3.42]
[1734360327098,3.42,217.34,217.19,3.42]
[1734360327294,2.3014,217.29,217.19,3.42]
[1734360328001,3.42,217.34,217.19,3.42]
[1734360328494,3.42,217.34,217.24,2.3019]
[1734360329502,3.42,217.34,217.19,3.42]
[1734360329704,3.42,217.34,217.15,0.18056]
[1734360329705,17.91612516,217.31,217.15,0.18056]
[1734360329897,3.42,217.34,217.15,0.18056]
[1734360329898,17.91612516,217.27,217.15,0.18056]
[1734360330097,17.91612516,217.23,217.15,0.18056]
[1734360330292,3.22,217.22,217.15,0.18056]
[1734360331502,3.22,217.27,217.15,0.18056]
[1734360331707,3.22,217.27,217.16,17.91612516]
[1734360331904,3.22,217.27,217.15,0.18056]
[1734360331905,3.22,217.27,217.18,17.91612516]
[1734360332113,3.22,217.27,217.15,0.18056]
[1734360332408,2.3018,217.25,217.15,0.18056]
[1734360332806,17.91612516,217.26,217.15,0.18056]
[1734360333008,2.3022,217.22,217.15,0.18056]
[1734360333312,17.91612516,217.26,217.15,0.18056]
[1734360333711,3.22,217.27,217.15,0.18056]
[1734360334013,3.22,217.28,217.17,17.91612516]
[1734360334211,3.22,217.31,217.17,17.91612516]
[1734360335014,2.301,217.33,217.28,2.3014]
[1734360335208,3.22,217.37,217.21,17.91612516]
[1734360335509,2.3006,217.36,217.31,2.3011]
[1734360335709,17.91612516,217.39,217.22,6.4171]
[1734360335710,3.22,217.38,217.22,6.4171]
[1734360336618,2.3007,217.36,217.3,2.3012]
[1734360336811,23.41718169,217.39,217.22,6.4171]
[1734360337114,3.22,217.38,217.22,6.4171]
[1734360337317,2.3009,217.34,217.22,6.4171]
[1734360337517,3.22,217.38,217.22,6.4171]
[1734360337706,2.3006,217.36,217.26,2.3016]
[1734360337912,2.3006,217.36,217.22,6.4171]
[1734360338513,2.3006,217.36,217.31,2.3011]
[1734360338712,3.088,217.4,217.25,17.91612516]
[1734360338915,17.91612516,217.44,217.25,17.91612516]
[1734360338916,3.22,217.42,217.25,17.91612516]
[1734360339213,3.22,217.42,217.38,2.3004]
[1734360339411,3.22,217.42,217.3,3.22]
[1734360339613,3.22,217.45,217.3,3.22]
[1734360339914,1.5697,217.5,217.37,17.91612516]
[1734360340115,3.22,217.51,217.38,1.5001]
[1734360340315,17.91612516,217.5,217.38,1.5001]
[1734360340511,17.91612516,217.5,217.33,17.91612516]
[1734360340714,1.4956,217.49,217.33,17.91612516]
[1734360341014,2.2997,217.45,217.39,2.3003]
[1734360341212,1.4956,217.49,217.36,5.5580143]
[1734360341614,2.2997,217.46,217.38,2.3004]
[1734360341819,5.5197,217.46,217.38,2.3004]
[1734360342122,5.5197,217.46,217.36,5.5580143]
[1734360342318,1.4956,217.49,217.36,5.5580143]
[1734360342726,5.42264165,217.52,217.36,5.5580143]
[1734360342727,1.5697,217.57,217.37,19.46462516]
[1734360342924,2.2989,217.53,217.46,2.2995]
[1734360343222,17.91612516,217.51,217.37,3.0174]
[1734360343824,17.91612516,217.51,217.37,2.3004]
[1734360344122,17.91612516,217.47,217.28,17.91612516]
[1734360344315,17.91612516,217.43,217.28,17.91612516]
[1734360344518,3.22,217.42,217.26,7.7979]
[1734360344819,4.6825,217.42,217.26,7.7979]
[1734360345017,4.6825,217.42,217.29,5.52282763]
[1734360345414,2.2998,217.44,217.36,2.3006]
[1734360345619,2.2998,217.44,217.32,17.91612516]
[1734360345620,3.22,217.42,217.32,17.91612516]
[1734360346518,3.22,217.44,217.32,17.91612516]
[1734360346723,2.2999,217.43,217.37,2.3004]
[1734360348016,3.22,217.44,217.37,2.3004]
[1734360348816,2.3,217.42,217.36,2.3006]
[1734360349023,3.22,217.44,217.32,17.91612516]
[1734360349224,3.1943,217.46,217.32,17.91612516]
[1734360349517,3.22,217.45,217.4,2.3001]
[1734360349922,5.5197,217.45,217.4,2.3001]
[1734360350122,3.22,217.45,217.4,2.3001]
[1734360350523,5.5197,217.45,217.39,2.3003]
[1734360350923,3.22,217.45,217.32,3.22]
[1734360351119,3.22,217.45,217.29,5.52282763]
[1734360351120,3.22,217.45,217.37,2.3005]
[1734360351320,3.1943,217.46,217.37,2.3005]
[1734360351524,3.22,217.45,217.37,2.3005]
[1734360351925,2.2999,217.43,217.37,2.3005]
[1734360352121,3.22,217.45,217.39,2.3003]
[1734360352429,3.22,217.45,217.32,17.91612516]
[1734360352636,1.4625,217.52,217.36,17.91612516]
[1734360352827,3.22,217.5,217.37,4.5054]
[1734360353027,3.22,217.5,217.4,2.3001]
[1734360353332,3.22,217.5,217.37,4.5054]
[1734360353629,3.22,217.5,217.41,2.3]
[1734360353831,21.13612516,217.5,217.41,2.3]
[1734360354023,0.69706263,217.49,217.41,2.3]
[1734360354227,2.2995,217.47,217.41,2.3]
[1734360354430,21.13612516,217.5,217.37,3.0076]
[1734360355133,21.13612516,217.5,217.42,2.2999]
[1734360355134,2.2994,217.48,217.42,2.2999]
[1734360355331,2.2994,217.48,217.37,3.0076]
[1734360355828,21.13612516,217.5,217.37,3.0076]
[1734360356029,3.22,217.5,217.37,3.0076]
[1734360356229,1.4625,217.52,217.41,2.3]
[1734360356230,3.22,217.51,217.41,2.3]
[1734360356426,2.2991,217.51,217.37,3.0076]
[1734360356631,4.6825,217.52,217.37,3.0076]
[1734360356828,4.6825,217.52,217.48,2.2993]
[1734360357131,2.2991,217.51,217.37,3.0076]
[1734360357336,4.6825,217.52,217.37,3.0076]
[1734360358033,18.61314731,217.51,217.37,1.5081]
[1734360358233,0.69702215,217.5,217.37,1.5081]
[1734360359331,17.91612516,217.51,217.37,1.5081]
[1734360359533,0.69707397,217.5,217.37,1.5081]
[1734360359732,2.2998,217.45,217.4,2.3002]
[1734360359931,3.06,217.45,217.37,1.5081]
[1734360360435,17.91612516,217.51,217.37,1.5081]
[1734360360631,3.06,217.5,217.37,1.5081]
[1734360360837,3.06,217.5,217.48,2.2993]
[1734360361030,3.06,217.5,217.38,3.06]
[1734360363037,2.2995,217.48,217.43,2.2998]
[1734360363232,3.06,217.5,217.38,3.06]
[1734360363830,3.06,217.5,217.37,1.5081]
[1734360364239,2.2995,217.48,217.42,2.2999]
[1734360364442,2.2995,217.48,217.37,1.5081]
[1734360364641,3.06,217.5,217.37,1.5081]
[1734360364845,1.4625,217.52,217.37,1.5081]
[1734360365140,3.06,217.51,217.37,1.5081]
[1734360365341,2.2993,217.49,217.44,2.2997]
[1734360365546,2.2993,217.49,217.37,1.5081]
[1734360366243,1.4717,217.55,217.42,17.91612516]
[1734360366244,2.2986,217.55,217.42,17.91612516]
[1734360366447,251.6281178,217.61,217.42,17.91612516]
[1734360366448,17.91612516,217.62,217.43,3.1252]
[1734360366642,5.57232586,217.6,217.43,6.1852]
[1734360366837,2.2986,217.56,217.43,6.1852]
[1734360367041,17.91612516,217.58,217.43,6.1852]
[1734360367447,2.2984,217.57,217.43,6.1852]
[1734360367740,3.06,217.57,217.43,6.1852]
[1734360367947,5.3584,217.58,217.43,6.1852]
[1734360368142,5.57232586,217.6,217.43,6.1852]
[1734360368342,17.91612516,217.58,217.5,2.2991]
[1734360368744,2.2985,217.56,217.47,5.64373925]
[1734360368949,17.91612516,217.63,217.47,5.64373925]
[1734360369149,3.75665046,217.62,217.47,5.64373925]
[1734360369350,2.2982,217.59,217.54,2.2987]
[1734360369947,3.06,217.62,217.47,5.64373925]
[1734360370144,17.91612516,217.59,217.47,5.64373925]
[1734360370848,2.2984,217.57,217.5,2.2991]
[1734360371051,17.91612516,217.59,217.43,6.1852]
[1734360371250,17.91612516,217.59,217.39,3.06]
[1734360371251,4.532,217.56,217.39,3.06]
[1734360371547,2.299,217.51,217.46,2.2995]
[1734360371751,20.97612516,217.55,217.39,3.06]
[1734360372046,20.97612516,217.55,217.38,17.91612516]
[1734360372953,3.06,217.54,217.38,17.91612516]
[1734360373249,2.299,217.52,217.42,2.2999]
[1734360373450,2.299,217.52,217.38,17.91612516]
[1734360374051,2.2991,217.51,217.46,2.2995]
[1734360374352,3.06,217.54,217.38,17.91612516]
[1734360374747,2.2992,217.5,217.45,2.2997]
[1734360375049,3.06,217.54,217.38,17.91612516]
[1734360375857,2.299,217.52,217.38,17.91612516]
[1734360376057,3.06,217.54,217.38,17.91612516]
[1734360376547,17.91612516,217.55,217.38,17.91612516]
[1734360376747,3.06,217.54,217.38,17.91612516]
[1734360376953,2.2991,217.51,217.38,17.91612516]
[1734360377150,3.06,217.54,217.38,17.91612516]
[1734360377953,2.2994,217.49,217.44,2.2999]
[1734360378259,3.06,217.54,217.38,17.91612516]
[1734360378650,3.06,217.54,217.43,2.2999]
[1734360379049,2.2995,217.49,217.44,2.2999]
[1734360379249,3.06,217.48,217.44,2.2999]
[1734360379456,3.06,217.48,217.38,17.91612516]
[1734360379852,3.06,217.48,217.42,17.91612516]
[1734360380255,3.06,217.48,217.47,2.2996]
[1734360380451,2.299,217.54,217.42,17.91612516]
[1734360380656,3.06,217.53,217.42,17.91612516]
[1734360381360,3.06,217.53,217.48,2.2995]
[1734360381559,3.06,217.53,217.37,7.6441]
[1734360381763,3.06,217.53,217.37,4.5841]
[1734360381962,3.06,217.53,217.42,2.3001]
[1734360382161,0.69701053,217.52,217.42,2.3001]
[1734360382559,2.2996,217.48,217.43,2.3]
[1734360382766,251.6281178,217.54,217.37,4.5841]
[1734360383057,3.06,217.52,217.44,2.2999]
[1734360383267,3.06,217.52,217.41,17.91612516]
[1734360383459,251.6281178,217.54,217.41,17.91612516]
[1734360383660,2.2989,217.54,217.41,17.91612516]
[1734360383858,3.06,217.55,217.41,17.91612516]
[1734360384259,2.299,217.54,217.48,2.2994]
[1734360385059,5.3588,217.55,217.41,17.91612516]
[1734360385557,269.54424296,217.58,217.41,17.91612516]
[1734360385558,251.6281178,217.58,217.54,2.2988]
[1734360385753,251.6281178,217.58,217.45,17.91612516]
[1734360385958,3.06,217.6,217.45,17.91612516]
[1734360386155,2.2983,217.6,217.54,2.2988]
[1734360386358,3.06,217.59,217.54,2.2988]
[1734360387266,3.06,217.59,217.56,2.2987]
[1734360387467,8.06776255,217.61,217.5,20.89612516]
[1734360387667,251.6281178,217.68,217.51,6.0768]
[1734360387872,8.06420609,217.67,217.51,7.5368]
[1734360388067,8.06420609,217.67,217.52,2.98]
[1734360388264,254.6081178,217.68,217.63,2.2978]
[1734360388675,2.98,217.68,217.54,17.91612516]
[1734360388870,2.98,217.68,217.65,2.2977]
[1734360389072,2.98,217.68,217.51,4.5568]
[1734360389365,17.91612516,217.65,217.5,5.60329074]
[1734360389570,2.98,217.65,217.51,17.91612516]
[1734360389763,2.98,217.65,217.5,5.60329074]
[1734360389764,2.98,217.65,217.55,17.91612516]
[1734360389967,38.52140008,217.69,217.55,20.89612516]
[1734360390273,41.50140008,217.69,217.64,2.2978]
[1734360390467,251.6281178,217.72,217.61,2.98]
[1734360390675,253.9248178,217.75,217.68,2.2973]
[1734360390883,0.69620706,217.74,217.61,7.5492]
[1734360391071,0.69620706,217.73,217.61,7.5492]
[1734360391275,251.6281178,217.77,217.64,17.91612516]
[1734360391469,0.69612507,217.76,217.64,17.91612516]
[1734360392375,0.69612507,217.76,217.61,7.5492]
[1734360392376,17.91612516,217.84,217.66,17.91612516]
[1734360392671,2.2961,217.81,217.74,2.2967]
[1734360392878,0.69586146,217.8,217.66,17.91612516]
[1734360393067,8.03324701,217.83,217.67,2.98]
[1734360393370,1.39167093,217.82,217.67,2.98]
[1734360393570,0.69584626,217.82,217.67,2.98]
[1734360393770,0.69584626,217.82,217.74,2.2967]
[1734360394080,18.61197142,217.82,217.67,2.98]
[1734360394277,2.2962,217.8,217.73,2.2968]
[1734360394471,18.61197142,217.82,217.67,2.98]
[1734360394668,0.69584626,217.82,217.7,17.91612516]
[1734360395473,0.69584626,217.82,217.71,2.98]
[1734360395670,0.69584626,217.82,217.72,1.5593]
[1734360395876,0.69584626,217.82,217.79,2.2961]
[1734360396073,0.69584626,217.82,217.72,3.1008]
[1734360396873,0.69584626,217.82,217.81,2.2959]
[1734360397270,0.69584626,217.82,217.72,21.01692516]
[1734360397973,0.69584626,217.82,217.81,2.2959]
[1734360398879,17.91612516,217.97,217.76,26.74638907]
[1734360399070,20.92492516,217.97,217.76,23.56638907]
[1734360399272,26.56361066,217.97,217.77,3.18]
[1734360399773,26.56361066,217.97,217.78,3.18]
[1734360399774,17.91612516,217.93,217.78,3.18]
[1734360400174,2.2952,217.88,217.78,3.18]
[1734360400770,17.91612516,217.89,217.76,5.65026391]
[1734360400971,4.6722,217.88,217.72,21.01692516]
[1734360401174,17.91612516,217.86,217.72,21.01692516]
[1734360401372,2.2958,217.82,217.77,2.2963]
[1734360401578,17.91612516,217.86,217.72,3.1008]
[1734360402382,6.262,217.87,217.72,21.01692516]
[1734360403078,6.262,217.87,217.76,17.91612516]
[1734360403284,3.18,217.87,217.79,2.2961]
[1734360403486,1.4922,217.88,217.76,21.09612516]
[1734360403681,0.58355,217.93,217.76,21.09612516]
[1734360403882,2.87825,217.93,217.87,2.2953]
[1734360404082,3.76355,217.93,217.76,21.09612516]
[1734360404585,2.2951,217.9,217.76,21.09612516]
[1734360404981,3.76355,217.93,217.81,2.2959]
[1734360405282,17.91612516,217.9,217.76,17.91612516]
[1734360405887,17.91612516,217.9,217.72,21.01692516]
[1734360406081,2.2957,217.84,217.79,2.2962]
[1734360406284,3.18,217.86,217.79,2.2962]
[1734360406479,3.18,217.92,217.72,21.01692516]
[1734360406682,3.18,217.92,217.76,17.91612516]
[1734360407781,17.91612516,217.9,217.76,17.91612516]
[1734360407988,3.18,217.89,217.76,17.91612516]
[1734360408588,3.18,217.89,217.75,5.40918302]
[1734360408796,2.2953,217.88,217.82,2.2958]
[1734360409087,0.58355,217.93,217.75,23.32530818]
[1734360409278,3.18,217.92,217.75,23.32530818]
[1734360409479,0.58355,217.93,217.79,17.91612516]
[1734360409679,0.58355,217.93,217.79,21.09612516]
[1734360409884,2.2949,217.92,217.85,2.2955]
[1734360410085,2.2949,217.92,217.79,21.09612516]
[1734360410385,3.76355,217.93,217.79,21.09612516]
[1734360410886,2.2952,217.9,217.79,17.91612516]
[1734360411293,21.67967516,217.93,217.79,17.91612516]
[1734360411882,18.49967516,217.93,217.79,17.91612516]
[1734360412088,3.18,217.92,217.79,17.91612516]
[1734360412289,2.2953,217.89,217.79,17.91612516]
[1734360412891,2.2953,217.88,217.79,17.91612516]
[1734360413091,3.18,217.92,217.76,3.18]
[1734360413290,3.18,217.92,217.81,2.296]
[1734360413892,3.18,217.92,217.75,23.32530818]
[1734360414189,0.58355,217.93,217.79,17.91612516]
[1734360414782,0.58355,217.93,217.9,2.2951]
[1734360414988,0.58355,217.93,217.83,17.91612516]
[1734360415191,0.58355,217.93,217.84,1.5616]
[1734360415584,0.58355,217.93,217.91,2.2949]
[1734360415988,0.58355,217.93,217.84,1.5616]
[1734360416387,0.58355,217.93,217.88,2.2951]
[1734360416888,0.58355,217.93,217.9,2.2949]
[1734360417088,0.58355,217.93,217.84,1.5616]
[1734360417684,0.58355,217.93,217.91,2.2948]
[1734360418092,0.58355,217.93,217.84,1.5616]
[1734360418890,0.58355,217.93,217.91,2.2948]
[1734360419091,0.58355,217.93,217.84,1.5616]
[1734360420192,0.58355,217.93,217.86,5.45809126]
[1734360421498,0.58355,217.93,217.84,1.5616]
[1734360421696,2.2949,217.91,217.84,1.5616]
[1734360421892,3.76355,217.93,217.82,2.9494]
[1734360422092,3.76355,217.93,217.83,2.2957]
[1734360422596,3.76355,217.93,217.82,1.4721]
[1734360422897,17.91612516,217.9,217.76,3.127]
[1734360423101,2.2956,217.84,217.76,3.127]
[1734360423293,3.18,217.84,217.77,2.2963]
[1734360423489,3.18,217.88,217.77,2.2963]
[1734360423698,3.18,217.9,217.78,17.91612516]
[1734360424093,2.2954,217.86,217.75,5.40918302]
[1734360424299,17.91612516,217.88,217.78,2.2962]
[1734360424793,3.18,217.9,217.75,5.40918302]
[1734360424998,3.18,217.9,217.83,2.2956]
[1734360425192,3.18,217.9,217.75,5.40918302]
[1734360425394,2.2951,217.89,217.75,5.40918302]
[1734360425599,3.18,217.91,217.77,17.91612516]
[1734360425799,3.18,217.91,217.78,3.18]
[1734360425995,2.2951,217.89,217.83,2.2957]
[1734360426194,3.18,217.91,217.78,3.18]
[1734360426391,3.18,217.91,217.79,1.5321]
[1734360426798,3.18,217.91,217.84,2.2956]
[1734360427102,2.2951,217.89,217.79,1.5321]
[1734360427400,2.2951,217.89,217.83,2.2956]
[1734360427799,0.58355,217.93,217.82,17.91612516]
[1734360428104,0.58355,217.93,217.83,1.5851]
[1734360428291,0.58355,217.93,217.84,3.08]
[1734360428598,0.58355,217.93,217.86,17.91612516]
[1734360428799,0.58355,217.93,217.92,2.2948]
[1734360429599,0.58355,217.93,217.86,17.91612516]
[1734360429600,251.6281178,218.04,217.86,17.91612516]
[1734360429793,254.7081178,218.04,217.97,2.2942]
[1734360429996,254.7081178,218.04,217.9,17.91612516]
[1734360430193,254.7081178,218.04,217.91,1.4637]
[1734360430395,3.08,218.04,217.91,1.4637]
[1734360430600,17.91612516,218.06,217.91,6.94613492]
[1734360430801,17.91612516,218.02,217.91,6.94613492]
[1734360431097,17.91612516,218.02,217.85,3.08]
[1734360431601,17.91612516,217.98,217.85,3.08]
[1734360431896,20.99612516,217.98,217.85,3.08]
[1734360432498,2.2942,217.98,217.84,1.525]
[1734360432701,2.2942,217.98,217.85,3.08]
[1734360432702,3.08,217.98,217.85,3.08]
[1734360433104,253.9221178,218.0,217.87,5.51824982]
[1734360433304,3.08,217.99,217.87,5.51824982]
[1734360433597,251.6281178,218.02,217.89,17.91612516]
[1734360434494,2.294,218.0,217.94,2.2945]
[1734360434895,254.7081178,218.04,217.89,17.91612516]
[1734360435100,8.01922283,218.03,217.89,17.91612516]
[1734360436001,269.54424296,218.02,217.87,5.51824982]
[1734360436202,269.54424296,218.02,217.84,1.525]
[1734360436203,17.91612516,217.98,217.84,1.525]
[1734360436405,15.61882283,217.97,217.83,1.5851]
[1734360436603,2.2946,217.94,217.87,2.2952]
[1734360436804,8.01922283,217.96,217.87,2.2952]
[1734360437105,7.5996,217.97,217.83,7.06573854]
[1734360437106,267.24694063,217.97,217.83,7.06573854]
[1734360437296,2.2945,217.95,217.86,2.2953]
[1734360437496,8.01922283,217.96,217.83,7.06573854]
[1734360437697,8.01922283,217.96,217.83,8.61343854]
[1734360438306,19.18003529,217.96,217.83,3.1328]
[1734360438508,17.91612516,217.94,217.83,3.1328]
[1734360438709,8.01922283,217.93,217.83,3.1328]
[1734360439102,17.91612516,217.94,217.83,3.1328]
[1734360439302,2.2946,217.95,217.83,3.1328]
[1734360439508,8.04459966,217.96,217.84,17.91612516]
[1734360439699,2.2944,217.96,217.9,2.2949]
[1734360439899,8.04459966,217.96,217.9,2.2949]
[1734360440212,22.28853511,217.97,217.84,17.91612516]
[1734360440402,269.54424296,217.98,217.84,22.46682516]
[1734360440403,8.04459966,217.96,217.84,22.46682516]
[1734360440712,8.04562977,217.97,217.84,22.46682516]
[1734360440902,8.04562977,217.98,217.88,17.91612516]
[1734360441107,8.04562977,218.0,217.88,17.91612516]
[1734360441411,8.04538605,218.0,217.88,17.91612516]
[1734360441713,251.6281178,218.01,217.88,17.91612516]
[1734360441905,257.19341796,218.05,217.88,17.91612516]
[1734360442109,10.33760115,218.04,217.98,2.2941]
[1734360442913,8.04400115,218.04,217.9,3.28]
[1734360443307,2.2937,218.02,217.96,2.2943]
[1734360443507,19.20378848,218.03,217.9,3.28]
[1734360443707,8.04400115,218.02,217.9,3.28]
[1734360444009,17.91612516,218.0,217.84,4.7507]
[1734360444214,11.32400115,217.99,217.84,4.7507]
[1734360444410,14.40640115,217.99,217.84,4.7507]
[1734360445010,2.2944,217.96,217.9,2.2949]
[1734360445610,8.04400115,217.97,217.84,22.66682516]
[1734360445912,14.40640115,217.99,217.84,22.66682516]
[1734360446108,6.3624,217.99,217.84,22.66682516]
[1734360446410,4.8408,217.99,217.88,17.91612516]
[1734360446805,4.8408,217.99,217.93,2.2946]
[1734360446806,7.1349,217.99,217.93,2.2946]
[1734360447110,4.8408,217.99,217.84,22.66682516]
[1734360447310,0.68987902,217.98,217.92,2.2948]
[1734360447512,12.88450105,217.99,217.92,2.2948]
[1734360447707,19.90260946,217.98,217.83,3.1328]
[1734360447902,17.91612516,217.92,217.76,17.91612516]
[1734360448108,6.2814,217.91,217.76,17.91612516]